fUSD/lending_fUSD_20240501
["ID","MTS","AMOUNT","RATE_DAILY","PERIOD"]
[325135574,1714536649382,-500.0,0.00011826,2]
[325135576,1714536649391,-505.91581285,0.00011826,2]
[325135578,1714536649400,-500.0,0.00011826,2]
[325135580,1714536649410,-500.0,0.00011826,2]
[325135582,1714536649419,-515.09090692,0.00011826,2]
[325135584,1714536649429,-500.0,0.00011826,2]
[325135587,1714536649439,-500.0,0.00011826,2]
[325135589,1714536649450,-275.32400567,0.00011826,2]
[325135590,1714536649461,-500.0,0.00011826,2]
[325135593,1714536649470,-500.0,0.00011826,2]
[325135594,1714536649479,-500.0,0.00011826,2]
[325135596,1714536649490,-500.0,0.00011826,2]
[325135598,1714536649500,-500.0,0.00011826,2]
[325135600,1714536649509,-500.89734621,0.00011826,2]
[325135602,1714536649519,-500.0,0.00011826,2]
[325135604,1714536649529,-500.0,0.00011826,2]
[325135606,1714536649539,-500.0,0.00011826,2]
[325135608,1714536649548,-500.0,0.00011826,2]
[325135610,1714536649558,-500.0,0.00011826,2]
[325135612,1714536649567,-500.0,0.00011826,2]
[325135615,1714536649577,-500.0,0.00011826,2]
[325135616,1714536649586,-500.0,0.00011826,2]
[325135618,1714536649595,-500.0,0.00011826,2]
[325135620,1714536649604,-500.0,0.00011826,2]
[325135622,1714536649613,-500.0,0.00011826,2]
[325135625,1714536649623,-500.0,0.00011826,2]
[325135627,1714536649632,-500.0,0.00011826,2]
[325135629,1714536649642,-501.15929768,0.00011826,2]
[325135631,1714536649651,-500.0,0.00011826,2]
[325135633,1714536649659,-501.09811585,0.00011826,2]
[325135635,1714536649669,-859.59871242,0.00011826,2]
[325135751,1714536650820,-404.0,0.00011826,2]
[325136172,1714536740288,155.3616826,6.175e-05,2]
[325136173,1714536740627,220.62973057,7.885e-05,2]
[325136174,1714536740719,159.60208042,7.503e-05,2]
[325136175,1714536740822,155.3616826,7.876e-05,2]
[325136176,1714536740851,153.44759758,6.08e-05,2]
[325136177,1714536741146,220.62973057,8.261e-05,2]
[325136178,1714536741338,155.3616826,9.21e-05,2]
[325136179,1714536741389,153.44759758,6.261e-05,2]
[325136180,1714536741509,246.44124085,6.421e-05,2]
[325136181,1714536741677,220.62973057,9.104e-05,2]
[325136182,1714536741705,169.5381758,6.591e-05,2]
[325136183,1714536741912,153.44759758,6.849e-05,2]
[325136184,1714536742042,246.44124085,6.578e-05,2]
[325136185,1714536742187,220.62973057,9.618e-05,2]
[325136186,1714536742983,153.44759758,7.238e-05,2]
[325136187,1714536743114,246.44124085,6.628e-05,2]
[325136188,1714536743628,246.44124085,6.642e-05,2]
[325136189,1714536743664,153.44759758,7.66e-05,2]
[325136190,1714536744146,246.44124085,6.753e-05,2]
[325136191,1714536744181,153.44759758,9.18e-05,2]
[325136192,1714536744646,246.44124085,7.39e-05,2]
[325136193,1714536745142,246.44124085,7.978e-05,2]
[325136194,1714536745400,153.33995171,7.308e-05,2]
[325136195,1714536745814,246.44124085,8.452e-05,2]
[325136196,1714536745905,153.33995171,8.488e-05,2]
[325136197,1714536746585,168.22068823,9.568e-05,2]
[325136198,1714536746937,157.04751359,7.284e-05,2]
[325136199,1714536747267,158.8767796,9.65e-05,2]
[325136200,1714536749822,150.37745783,7.721e-05,2]
[325136201,1714536750045,155.78528379,6.179e-05,2]
[325136202,1714536750548,155.78528379,6.487e-05,2]
[325136203,1714536750878,150.37745783,8.603e-05,2]
[325136204,1714536751003,167.96542799,9.225e-05,2]
[325136205,1714536751072,155.78528379,6.588e-05,2]
[325136206,1714536751489,150.37745783,9.367e-05,2]
[325136207,1714536751588,155.78528379,7.913e-05,2]
[325136208,1714536752048,174.05950447,6.621e-05,2]
[325136209,1714536752095,155.78528379,9.296e-05,2]
[325136210,1714536752360,159.75363846,6.608e-05,2]
[325136211,1714536752432,154.77231304,6.106e-05,2]
[325136212,1714536752801,154.20889232,9.204e-05,2]
[325136213,1714536753259,155.46192524,7.26e-05,2]
[325136214,1714536753323,154.2066973,6.754e-05,2]
[325136215,1714536753711,154.2066973,7.179e-05,2]
[325136216,1714536754257,154.2066973,8.711e-05,2]
[325136218,1714536754938,154.2066973,9.604e-05,2]
[325136220,1714536864575,157.06,8.656e-05,2]
[325136221,1714536872079,440.67195272,9.604e-05,2]
[325136222,1714536872351,299.38956528,0.0001,2]
[325136223,1714536874138,155.0,9.604e-05,2]
[325136224,1714536886350,299.33345953,0.0001,2]
[325136225,1714536896101,251.76218263,9.604e-05,2]
[325136226,1714536900766,547.10066299,0.0001,2]
[325136227,1714536920704,547.10066299,0.0001,2]
[325136228,1714536936694,547.22639488,0.0001,2]
[325136229,1714536954750,546.9749311,0.0001,2]
[325136231,1714536970699,371.27167057,0.0001,2]
[325136238,1714537036741,189.34984693,6.119e-05,2]
[325136239,1714537036900,155.36168261,0.00010013,2]
[325136240,1714537036930,153.58505748,9.591e-05,2]
[325136241,1714537036979,166.66666666,6.257e-05,2]
[325136242,1714537037266,189.34984693,6.754e-05,2]
[325136243,1714537038131,189.34984693,7.465e-05,2]
[325136244,1714537038668,189.34984693,7.671e-05,2]
[325136245,1714537039686,189.34984693,8.174e-05,2]
[325136247,1714537040620,191.21243316,6.914e-05,2]
[325136248,1714537040754,189.34984693,8.467e-05,2]
[325136249,1714537041100,191.21243316,8.001e-05,2]
[325136250,1714537041799,189.34984693,9.281e-05,2]
[325136251,1714537042842,191.21243316,8.124e-05,2]
[325136252,1714537043356,191.21243316,8.516e-05,2]
[325136253,1714537043830,191.21243316,8.73e-05,2]
[325136254,1714537044331,191.21243316,8.882e-05,2]
[325136255,1714537044459,150.37745783,6.882e-05,2]
[325136256,1714537044893,191.21243316,8.924e-05,2]
[325136257,1714537045132,150.37745783,7.026e-05,2]
[325136258,1714537045446,150.37745783,7.493e-05,2]
[325136259,1714537045970,150.37745783,8.736e-05,2]
[325136260,1714537047055,150.37745783,9.773e-05,2]
[325136261,1714537050508,156.14614758,9.812e-05,2]
[325136262,1714537050603,158.43315544,9.339e-05,2]
[325136263,1714537050697,154.20889232,6.08e-05,2]
[325136264,1714537051003,159.75363846,6.539e-05,2]
[325136265,1714537051181,154.20889232,8.54e-05,2]
[325136266,1714537051224,154.2066973,8.598e-05,2]
[325136267,1714537051644,159.75363846,7.244e-05,2]
[325136268,1714537051695,154.20889232,8.608e-05,2]
[325136269,1714537051723,154.2066973,9.156e-05,2]
[325136271,1714537060323,13230.76913428,0.0001,2]
[325136272,1714537080289,5558.74347614,9.773e-05,2]
[325136273,1714537170185,216.22293644,0.00010041,2]
[325136274,1714537177076,49780.86105674,0.00010037,2]
[325136275,1714537184883,155.0,0.00010041,2]
[325136276,1714537185082,155.0,0.00010041,2]
[325136277,1714537185469,571.945416,0.00010041,7]
[325136278,1714537205695,1000.0,0.00010041,2]
[325136280,1714537237366,157.24133803,9.945e-05,2]
[325136282,1714537336682,159.54448748,6.534e-05,2]
[325136283,1714537337077,168.98828864,6.242e-05,2]
[325136284,1714537337128,153.5506925,6.099e-05,2]
[325136285,1714537337168,159.54448748,6.733e-05,2]
[325136286,1714537337612,168.98828864,6.59e-05,2]
[325136287,1714537337654,153.5506925,6.252e-05,2]
[325136288,1714537337695,159.54448748,7.932e-05,2]
[325136289,1714537338128,168.98828864,7.435e-05,2]
[325136290,1714537338610,159.54448748,8.026e-05,2]
[325136291,1714537338644,153.5506925,9.527e-05,2]
[325136292,1714537338728,168.98828864,9.809e-05,2]
[325136293,1714537338939,159.54448748,8.054e-05,2]
[325136294,1714537339491,159.54448748,8.662e-05,2]
[325136295,1714537340001,159.54448748,8.854e-05,2]
[325136296,1714537340079,153.9565219,9.685e-05,2]
[325136297,1714537340891,152.77186329,6.091e-05,2]
[325136298,1714537341106,159.54448748,9.428e-05,2]
[325136300,1714537341615,159.54448748,9.739e-05,2]
[325136301,1714537342801,154.20889232,6.303e-05,2]
[325136302,1714537343632,154.20889232,7.637e-05,2]
[325136303,1714537343879,154.20889232,7.962e-05,2]
[325136304,1714537344389,154.20889232,9.886e-05,2]
[325136305,1714537346431,154.2066973,9.83e-05,2]
[325136306,1714537346734,154.74524914,6.949e-05,2]
[325136307,1714537347007,155.7852838,6.269e-05,2]
[325136308,1714537347184,150.87670354,6.973e-05,2]
[325136309,1714537347257,154.74524914,7.021e-05,2]
[325136310,1714537347539,155.7852838,9.101e-05,2]
[325136311,1714537347720,150.87670354,7.718e-05,2]
[325136312,1714537348223,150.87670354,9.77e-05,2]
[325136314,1714537350852,159.75363846,6.663e-05,2]
[325136315,1714537351385,159.75363846,7.582e-05,2]
[325136317,1714537434903,159.99,8.219e-05,2]
[325136319,1714537474046,434.18,9.901e-05,2]
[325136320,1714537502823,155.0,0.00010041,2]
[325136321,1714537534205,1037.95473275,0.00010041,2]
[325136331,1714537580219,673.51524476,0.00010041,2]
[325136332,1714537606720,1037.95473275,0.00010041,2]
[325136384,1714537637045,155.36168262,9.57e-05,2]
[325136385,1714537637124,152.29246533,6.905e-05,2]
[325136386,1714537637614,152.29246533,7.061e-05,2]
[325136387,1714537638119,152.29246533,7.069e-05,2]
[325136388,1714537638620,152.29246533,7.562e-05,2]
[325136389,1714537639976,152.29246533,7.966e-05,2]
[325136390,1714537640554,152.29246533,8.38e-05,2]
[325136391,1714537640794,151.50674154,6.002e-05,2]
[325136392,1714537641085,152.29246533,8.42e-05,2]
[325136393,1714537641308,151.50674154,6.178e-05,2]
[325136394,1714537641824,151.50674154,6.29e-05,2]
[325136395,1714537642128,152.29246533,8.958e-05,2]
[325136396,1714537642330,151.50674154,6.897e-05,2]
[325136397,1714537642791,153.33995171,9.215e-05,2]
[325136398,1714537642828,169.5381758,8.057e-05,2]
[325136399,1714537642865,151.50674154,6.961e-05,2]
[325136400,1714537643323,151.50674154,8.814e-05,2]
[325136401,1714537643866,151.50674154,9.395e-05,2]
[325136402,1714537644677,155.7852838,6.738e-05,2]
[325136403,1714537648328,150.87670354,6.685e-05,2]
[325136404,1714537648844,150.87670354,6.94e-05,2]
[325136405,1714537649354,150.87670354,9.169e-05,2]
[325136406,1714537649501,154.2066973,9.972e-05,2]
[325136407,1714537651941,159.75363847,9.866e-05,2]
[325136408,1714537652832,152.57172009,7.023e-05,2]
[325136409,1714537683192,622.43,9.981e-05,2]
[325136410,1714537685233,1037.95473275,0.00010041,2]
[325136489,1714537832075,-585.85556778,0.00010042,2]
[325136490,1714537832084,-150.0,0.00010044,2]
[325136491,1714537832094,-275.16940529,0.00010045,2]
[325136492,1714537832103,-158.1052925,0.00010045,2]
[325136493,1714537832113,-478.3129685,0.00010045,7]
[325136494,1714537832122,-281.44596006,0.00010045,2]
[325136495,1714537832131,-569.11080587,0.00010045,2]
[325136496,1714537832211,-273.89304953,0.00010045,2]
[325136497,1714537832222,-108.82325914,0.00010045,2]
[325136498,1714537832231,-611.44261313,0.00010045,2]
[325136499,1714537832283,-1559.39465,0.00010045,2]
[325136500,1714537832295,-155.90249829,0.00010045,2]
[325136501,1714537832304,-144.50349958,0.00010045,2]
[325136502,1714537832317,-62.74487062,0.00010045,2]
[325136503,1714537832328,-262.9025919,0.00010045,2]
[325136504,1714537832337,-65.44045205,0.00010045,2]
[325136505,1714537832372,-169.66512483,0.00010045,2]
[325136506,1714537832382,-215.52248085,0.00010045,2]
[325136507,1714537832391,-395.36245937,0.00010045,2]
[325136508,1714537832400,-155.17222937,0.00010045,2]
[325136509,1714537832409,-780.58287588,0.00010045,2]
[325136510,1714537832418,-166.02874233,0.00010045,2]
[325136511,1714537832428,-216.56959659,0.00010046,2]
[325136513,1714537832438,-333233.11922239,0.00010047,2]
[325136515,1714537832450,-69407.64115871,0.00010047,2]
[325136554,1714537838103,-31992.01999516,0.00010047,2]
[325136563,1714537838169,-249863.43252759,0.00010047,2]
[325136565,1714537838179,-1480.79,0.00010152,2]
[325136567,1714537838189,-154.20889232,0.00010213,2]
[325136569,1714537838199,-1467.14,0.00010259,2]
[325136571,1714537838209,-170.03,0.00010263,2]
[325136574,1714537838219,-150.99,0.00010263,2]
[325136575,1714537838228,-499.99,0.00010263,2]
[325136576,1714537838239,-169.81,0.00010362,2]
[325136577,1714537838248,-377.57,0.00010362,2]
[325136578,1714537838258,-168.22068823,0.000104,2]
[325136579,1714537838267,-151.50674154,0.00010463,2]
[325136580,1714537838277,-154.20889232,0.00010649,2]
[325136581,1714537838286,-2211.44450284,0.00010672,2]
[325136582,1714537838296,-2211.44450285,0.00010672,2]
[325136583,1714537838305,-155.7852838,0.00010677,2]
[325136584,1714537838325,-170.73232031,0.00010858,2]
[325136585,1714537838337,-300.0,0.000109,3]
[325136586,1714537838348,-151.50674154,0.00010914,2]
[325136587,1714537838358,-500.99752713,0.00010958,2]
[325136588,1714537838368,-229.14210528,0.00010958,2]
[325136589,1714537838377,-500.0,0.00010958,2]
[325136590,1714537838387,-500.0,0.00010958,2]
[325136591,1714537838397,-500.0,0.00010958,2]
[325136592,1714537838408,-163.4,0.00010958,2]
[325136593,1714537838417,-500.0,0.00010958,2]
[325136594,1714537838427,-500.0,0.00010958,2]
[325136595,1714537838436,-500.0,0.00010958,2]
[325136596,1714537838446,-500.0,0.00010958,2]
[325136597,1714537838455,-500.0,0.00010958,2]
[325136598,1714537838465,-501.52734539,0.00010958,2]
[325136599,1714537838474,-500.0,0.00010958,2]
[325136600,1714537838484,-500.0,0.00010958,2]
[325136601,1714537838494,-500.0,0.00010958,2]
[325136602,1714537838503,-500.0,0.00010958,2]
[325136603,1714537838513,-500.0,0.00010958,2]
[325136604,1714537838522,-500.0,0.00010958,2]
[325136605,1714537838532,-500.0,0.00010958,2]
[325136606,1714537838542,-500.0,0.00010958,2]
[325136607,1714537838552,-508.54849568,0.00010958,2]
[325136609,1714537838562,-500.0,0.00010958,2]
[325136611,1714537838572,-500.0,0.00010958,2]
[325136613,1714537838583,-500.0,0.00010958,2]
[325136615,1714537838593,-162.68305096,0.00010958,2]
[325136617,1714537838603,-506.40393918,0.00010958,2]
[325136619,1714537838612,-500.0,0.00010958,2]
[325136621,1714537838622,-733.11,0.00010958,2]
[325136623,1714537838632,-500.0,0.00010958,2]
[325136625,1714537838641,-500.0,0.00010958,2]
[325136628,1714537838651,-500.0,0.00010958,2]
[325136630,1714537838661,-500.0,0.00010958,2]
[325136632,1714537838671,-500.0,0.00010958,2]
[325136634,1714537838680,-806.88,0.00010958,2]
[325136636,1714537838689,-500.0,0.00010958,2]
[325136638,1714537838699,-500.0,0.00010958,2]
[325136640,1714537838708,-500.0,0.00010958,2]
[325136642,1714537838717,-626.95,0.00010958,2]
[325136644,1714537838726,-500.0,0.00010958,2]
[325136646,1714537838736,-500.0,0.00010958,2]
[325136648,1714537838746,-500.0,0.00010958,2]
[325136650,1714537838756,-500.0,0.00010958,2]
[325136652,1714537838766,-500.0,0.00010958,2]
[325136654,1714537838775,-500.0,0.00010958,2]
[325136656,1714537838785,-500.0,0.00010958,2]
[325136658,1714537838795,-500.0,0.00010958,2]
[325136660,1714537838804,-500.0,0.00010958,2]
[325136662,1714537838815,-503.98708199,0.00010958,2]
[325136664,1714537838828,-500.0,0.00010958,2]
[325136666,1714537838838,-500.0,0.00010958,2]
[325136668,1714537838847,-500.0,0.00010958,2]
[325136670,1714537838860,-505.77659193,0.00010958,2]
[325136672,1714537838870,-500.0,0.00010958,2]
[325136674,1714537838879,-500.0,0.00010958,2]
[325136676,1714537838890,-500.0,0.00010958,2]
[325136678,1714537838899,-150.0,0.00010958,2]
[325136680,1714537838912,-500.0,0.00010958,2]
[325136682,1714537838921,-500.0,0.00010958,2]
[325136685,1714537838931,-500.0,0.00010958,2]
[325136687,1714537838945,-500.0,0.00010958,2]
[325136689,1714537838955,-500.0,0.00010958,2]
[325136691,1714537838964,-500.0,0.00010958,2]
[325136693,1714537838974,-500.0,0.00010958,2]
[325136695,1714537838984,-500.0,0.00010958,2]
[325136698,1714537838994,-500.0,0.00010958,2]
[325136700,1714537839004,-500.0,0.00010958,2]
[325136702,1714537839013,-500.0,0.00010958,2]
[325136704,1714537839023,-500.0,0.00010958,2]
[325136706,1714537839033,-500.0,0.00010958,2]
[325136708,1714537839043,-500.0,0.00010958,2]
[325136710,1714537839052,-500.0,0.00010958,2]
[325136712,1714537839062,-500.0,0.00010958,2]
[325136714,1714537839071,-500.0,0.00010958,2]
[325136716,1714537839082,-500.0,0.00010958,2]
[325136718,1714537839092,-500.0,0.00010958,2]
[325136720,1714537839101,-500.0,0.00010958,2]
[325136722,1714537839110,-500.0,0.00010958,2]
[325136724,1714537839120,-500.0,0.00010958,2]
[325136726,1714537839130,-517.27,0.00010958,2]
[325136728,1714537839139,-500.0,0.00010958,2]
[325136730,1714537839149,-500.0,0.00010958,2]
[325136732,1714537839159,-500.0,0.00010958,2]
[325136734,1714537839168,-500.0,0.00010958,2]
[325136736,1714537839178,-500.0,0.00010958,2]
[325136738,1714537839187,-500.0,0.00010958,2]
[325136741,1714537839197,-500.0,0.00010958,2]
[325136743,1714537839206,-500.0,0.00010958,2]
[325136745,1714537839215,-500.0,0.00010958,2]
[325136746,1714537839226,-500.0,0.00010958,2]
[325136749,1714537839236,-500.0,0.00010958,2]
[325136751,1714537839245,-500.0,0.00010958,2]
[325136753,1714537839255,-500.0,0.00010958,2]
[325136755,1714537839264,-500.0,0.00010958,2]
[325136757,1714537839273,-500.0,0.00010958,2]
[325136759,1714537839283,-500.0,0.00010958,2]
[325136761,1714537839293,-500.0,0.00010958,2]
[325136763,1714537839302,-500.0,0.00010958,2]
[325136765,1714537839311,-500.0,0.00010958,2]
[325136767,1714537839320,-500.0,0.00010958,2]
[325136769,1714537839331,-171.39248988,0.00010958,2]
[325136771,1714537839341,-500.0,0.00010958,2]
[325136798,1714537839580,-500.0,0.00010958,2]
[325136801,1714537839599,-14041.02,0.00010958,2]
[325136803,1714537839608,-547.27813596,0.00010958,2]
[325136805,1714537839618,-874.0,0.00010958,2]
[325136807,1714537839627,-500.0,0.00010958,2]
[325136809,1714537839637,-1334.04,0.00010958,2]
[325136811,1714537839646,-500.0,0.00010958,2]
[325136812,1714537839656,-500.0,0.00010958,2]
[325136813,1714537839666,-1008.25,0.00010958,2]
[325136814,1714537839675,-500.0,0.00010958,2]
[325136815,1714537839684,-504.75839695,0.00010958,2]
[325136816,1714537839693,-785.01,0.00010958,2]
[325136817,1714537839702,-500.0,0.00010958,2]
[325136818,1714537839711,-811.79,0.00010958,2]
[325136819,1714537839720,-11261.13,0.00010958,2]
[325136821,1714537839729,-500.0,0.00010958,2]
[325136823,1714537839739,-500.0,0.00010958,2]
[325136825,1714537839748,-500.0,0.00010958,2]
[325136827,1714537839757,-500.0,0.00010958,2]
[325136829,1714537839767,-669.35,0.00010958,2]
[325136831,1714537839776,-4480.31,0.00010958,2]
[325136833,1714537839785,-500.0,0.00010958,2]
[325136835,1714537839795,-500.0,0.00010958,2]
[325136837,1714537839804,-501.30083194,0.00010958,2]
[325136839,1714537839814,-500.0,0.00010958,2]
[325136841,1714537839826,-783.68,0.00010958,2]
[325136843,1714537839836,-4262.03,0.00010958,2]
[325136844,1714537839845,-500.0,0.00010958,2]
[325136847,1714537839855,-503.58743489,0.00010958,2]
[325136849,1714537839864,-500.0,0.00010958,2]
[325136851,1714537839873,-500.0,0.00010958,2]
[325136853,1714537839882,-500.0,0.00010958,2]
[325136855,1714537839892,-784.14,0.00010958,2]
[325136857,1714537839902,-500.0,0.00010958,2]
[325136859,1714537839912,-873.04,0.00010958,2]
[325136861,1714537839922,-500.0,0.00010958,2]
[325136863,1714537839931,-500.0,0.00010958,2]
[325136864,1714537839940,-615.27,0.00010958,2]
[325136866,1714537839949,-500.0,0.00010958,2]
[325136868,1714537839958,-500.0,0.00010958,2]
[325136871,1714537839967,-500.0,0.00010958,2]
[325136873,1714537839977,-500.0,0.00010958,2]
[325136874,1714537839986,-500.0,0.00010958,2]
[325136877,1714537839996,-500.0,0.00010958,2]
[325136879,1714537840006,-500.0,0.00010958,2]
[325136881,1714537840016,-1697.9,0.00010958,2]
[325136883,1714537840025,-500.0,0.00010958,2]
[325136885,1714537840035,-500.0,0.00010958,2]
[325136887,1714537840044,-500.0,0.00010958,2]
[325136889,1714537840053,-500.0,0.00010958,2]
[325136891,1714537840062,-500.0,0.00010958,2]
[325136893,1714537840071,-1534.49,0.00010958,2]
[325136895,1714537840081,-500.0,0.00010958,2]
[325136897,1714537840091,-500.0,0.00010958,2]
[325136899,1714537840100,-724.73,0.00010958,2]
[325136901,1714537840109,-500.0,0.00010958,2]
[325136903,1714537840118,-500.0,0.00010958,2]
[325136905,1714537840128,-484.52683538,0.00010958,2]
[325136907,1714537840137,-500.0,0.00010958,2]
[325136909,1714537840146,-500.0,0.00010958,2]
[325136911,1714537840155,-500.0,0.00010958,2]
[325136913,1714537840164,-500.0,0.00010958,2]
[325136915,1714537840173,-2201.04,0.00010958,2]
[325136917,1714537840182,-500.0,0.00010958,2]
[325136919,1714537840191,-500.0,0.00010958,2]
[325136921,1714537840200,-150.71529777,0.00010958,2]
[325136923,1714537840210,-500.0,0.00010958,2]
[325136925,1714537840219,-500.0,0.00010958,2]
[325136927,1714537840228,-500.0,0.00010958,2]
[325136929,1714537840237,-500.0,0.00010958,2]
[325136931,1714537840246,-812.93,0.00010958,2]
[325136933,1714537840255,-500.0,0.00010958,2]
[325136935,1714537840264,-778.97,0.00010958,2]
[325136937,1714537840274,-500.0,0.00010958,2]
[325136939,1714537840283,-796.72,0.00010958,2]
[325136941,1714537840292,-500.0,0.00010958,2]
[325136943,1714537840301,-501.00919005,0.00010958,2]
[325136945,1714537840310,-501.23263135,0.00010958,2]
[325136947,1714537840318,-500.0,0.00010958,2]
[325136949,1714537840328,-501.34443627,0.00010958,2]
[325136951,1714537840337,-500.0,0.00010958,2]
[325136953,1714537840346,-7125.05,0.00010958,2]
[325136955,1714537840356,-716.53,0.00010958,2]
[325136957,1714537840365,-506.76586592,0.00010958,2]
[325136959,1714537840374,-500.0,0.00010958,2]
[325136962,1714537840392,-500.0,0.00010958,2]
[325136964,1714537840404,-500.0,0.00010958,2]
[325136966,1714537840414,-1101.04,0.00010958,2]
[325136968,1714537840424,-500.0,0.00010958,2]
[325136970,1714537840434,-500.0,0.00010958,2]
[325136973,1714537840443,-500.0,0.00010958,2]
[325136975,1714537840453,-500.0,0.00010958,2]
[325136977,1714537840462,-580.62,0.00010958,2]
[325136979,1714537840471,-500.0,0.00010958,2]
[325136981,1714537840481,-500.0,0.00010958,2]
[325136983,1714537840490,-887.65,0.00010958,2]
[325136985,1714537840500,-500.0,0.00010958,2]
[325136987,1714537840510,-500.0,0.00010958,2]
[325136989,1714537840519,-500.0,0.00010958,2]
[325136991,1714537840529,-500.0,0.00010958,2]
[325136993,1714537840539,-783.79,0.00010958,2]
[325136995,1714537840549,-500.0,0.00010958,2]
[325136997,1714537840558,-500.0,0.00010958,2]
[325136999,1714537840568,-1663.09,0.00010958,2]
[325137001,1714537840579,-500.0,0.00010958,2]
[325137003,1714537840589,-1496.81,0.00010958,2]
[325137005,1714537840599,-438.16088613,0.00010958,2]
[325137007,1714537840609,-500.0,0.00010958,2]
[325137009,1714537840619,-500.0,0.00010958,2]
[325137012,1714537840629,-500.0,0.00010958,2]
[325137014,1714537840639,-1086.67,0.00010958,2]
[325137016,1714537840648,-500.0,0.00010958,2]
[325137018,1714537840658,-500.17684194,0.00010958,2]
[325137020,1714537840667,-868.7,0.00010958,2]
[325137022,1714537840676,-500.0,0.00010958,2]
[325137024,1714537840686,-500.0,0.00010958,2]
[325137026,1714537840696,-500.0,0.00010958,2]
[325137028,1714537840705,-500.0,0.00010958,2]
[325137030,1714537840715,-500.12097167,0.00010958,2]
[325137032,1714537840724,-500.0,0.00010958,2]
[325137034,1714537840734,-1224.11,0.00010958,2]
[325137036,1714537840744,-500.0,0.00010958,2]
[325137038,1714537840753,-519.8,0.00010958,2]
[325137040,1714537840763,-2235.84,0.00010958,2]
[325137042,1714537840772,-500.0,0.00010958,2]
[325137044,1714537840781,-500.0,0.00010958,2]
[325137046,1714537840791,-1198.56,0.00010958,2]
[325137049,1714537840800,-500.0,0.00010958,2]
[325137051,1714537840810,-4553.38,0.00010958,2]
[325137053,1714537840819,-500.0,0.00010958,2]
[325137055,1714537840831,-500.0,0.00010958,2]
[325137057,1714537840843,-500.0,0.00010958,2]
[325137059,1714537840853,-1340.58,0.00010958,2]
[325137061,1714537840862,-500.0,0.00010958,2]
[325137063,1714537840871,-500.0,0.00010958,2]
[325137065,1714537840882,-622.4,0.00010958,2]
[325137067,1714537840891,-500.33074159,0.00010958,2]
[325137069,1714537840900,-2375.24,0.00010958,2]
[325137071,1714537840911,-500.0,0.00010958,2]
[325137073,1714537840921,-541.74791269,0.00010958,2]
[325137075,1714537840930,-3062.54,0.00010958,2]
[325137077,1714537840939,-1114.01,0.00010958,2]
[325137079,1714537840948,-3003.35,0.00010958,2]
[325137081,1714537840957,-500.0,0.00010958,2]
[325137083,1714537840967,-500.0,0.00010958,2]
[325137085,1714537840976,-512.04013839,0.00010958,2]
[325137087,1714537840987,-500.0,0.00010958,2]
[325137089,1714537840997,-1820.5,0.00010958,2]
[325137091,1714537841006,-500.0,0.00010958,2]
[325137093,1714537841016,-500.0,0.00010958,2]
[325137095,1714537841026,-4359.94,0.00010958,2]
[325137097,1714537841035,-500.0,0.00010958,2]
[325137099,1714537841044,-1223.49,0.00010958,2]
[325137101,1714537841053,-7748.32,0.00010958,2]
[325137103,1714537841062,-500.0,0.00010958,2]
[325137105,1714537841072,-2113.37,0.00010958,2]
[325137107,1714537841082,-1467.46,0.00010958,2]
[325137109,1714537841092,-500.0,0.00010958,2]
[325137111,1714537841101,-500.0,0.00010958,2]
[325137113,1714537841110,-222.0938484,0.00010958,2]
[325137115,1714537841119,-500.0,0.00010958,2]